Cogmind - Beta 14 @@@ ROGUE MODE // 2025.01.16 @ 19:47:23 Player: cabin Result: Destroyed self with YOLO Cannon Performance ------------- Evolutions (0) 0 Regions Visited (4) 800 Robots Destroyed (19) 95 Value Destroyed (304) 304 Prototype IDs (1) 20 Alien Tech Used (0) 0 Bonus (300) 300 TOTAL SCORE: 1519 Bonus ------- Aligned with FarCom 300 Cogmind --------- Core Integrity 0/250 Matter 300/300 Energy 55/125 System Corruption 0% Temperature Cool (20) Movement Core (450) Ox8 Location -9/Mines Parts ------- > --- POWER (1) -------- Light Ion Engine > --- PROPULSION (2) --- (None) > --- UTILITY (2) ------ Small Storage Unit Improved Targeting Computer > --- WEAPON (2) ------- YOLO Cannon > --- INVENTORY (8) ---- Light Ion Engine Structural Scanner ECM Suite Shield Generator Light Assault Rifle Peak State ------------ > --- POWER ------------ Light Ion Engine > --- PROPULSION ------- Flight Unit Flight Unit > --- UTILITY ---------- Small Storage Unit Improved Targeting Computer > --- WEAPON ----------- YOLO Cannon > --- INVENTORY -------- Light Ion Engine Light Ion Engine Light Treads Light Treads Structural Scanner ECM Suite Shield Generator Light Assault Rifle [Rating: 26] Favorites ----------- Power Light Ion Engine Engine Light Ion Engine Propulsion Flight Unit Treads Light Treads Flight Unit Flight Unit Utility Small Storage Unit Device ECM Suite Storage Small Storage Unit Processor Targeting Computer Weapon YOLO Cannon Energy Cannon YOLO Cannon Ballistic Gun Light Assault Rifle Build | -11 -10 -10 -10 -9 ------- Run | Yrd Mat Min Exi Min Slots Evolved . | . . . . . Power . | . . . . . Propulsion . | . . . . . Utility . | . . . . . Weapon . | . . . . . Parts Attached 19 | 6 4 1 2 6 Power 3 | 1 1 . . 1 Engine 3 | 1 1 . . 1 Core . | . . . . . Reactor . | . . . . . Propulsion 9 | 2 2 . 1 4 Treads 4 | 2 . . . 2 Leg . | . . . . . Wheel . | . . . . . Hover . | . . . . . Flight 5 | . 2 . 1 2 Utility 4 | 1 1 1 . 1 Device 1 | . 1 . . . Storage 1 | 1 . . . . Processor 2 | . . 1 . 1 Hackware . | . . . . . Protection . | . . . . . Artifact . | . . . . . Weapon 3 | 2 . . 1 . Energy Gun . | . . . . . Energy Cannon 1 | . . . 1 . Ballistic Gun 2 | 2 . . . . Ballistic Cannon . | . . . . . Launcher . | . . . . . Special Weapon . | . . . . . Impact Weapon . | . . . . . Slashing Weapon . | . . . . . Piercing Weapon . | . . . . . Special Melee Weapon . | . . . . . Unidentified Prototypes 1 | . . . 1 . Parts Lost 5 | . . . . 5 Power 1 | . . . . 1 Propulsion 4 | . . . . 4 Utility . | . . . . . Weapon . | . . . . . Highest Loss Streak 2 | . . . . 2 To Critical Strikes . | . . . . . Average Slot Usage (%) 87 | . 98 98 89 82 Engine 13 | . 13 14 14 14 Treads 4 | . 25 . . . Flight 22 | . 2 28 27 24 Device 1 | . 12 . . . Storage 14 | . 14 14 14 14 Processor 11 | . . 12 14 14 Energy Cannon 10 | . . . 9 14 Ballistic Gun 7 | . 28 28 9 . Peak Build Rating 26 | 6 7 7 25 26 Average Rating 19 | 4 6 6 18 25 On Entrance 8 | . 6 6 7 25 Naked Turns . | . . . . . Heaviest Build 26 | 13 15 11 26 26 Greatest Support 40 | 40 40 8 8 40 Greatest Overweight (x) 8 | 1 1 1 3 8 Average Overweight (x) 1 | . . 1 1 3 Largest Inventory Capacity 8 | 8 8 8 8 8 Average Capacity 7 | 6 8 8 8 8 Most Carried 8 | 1 7 7 8 8 Average Carried 6 | . 2 6 7 7 Final Capacity 8 | 8 8 8 8 8 Final Carried 8 | 1 6 7 8 5 Class Distribution -------------------- 100% | Mutant Dominant Class ---------------- Mutant | -10/Materials Mutant | -10/Mines Mutant | -10/Exiles Mutant | -9/Mines Resources | -11 -10 -10 -10 -9 ----------- Run | Yrd Mat Min Exi Min Matter Collected 492 | 203 108 54 . 127 Remotely . | . . . . . Salvage Created 337 | . 137 . . 200 Parts 37 | . 17 . . 20 Haulers Intercepted . | . . . . . Recyclers Shooed . | . . . . . Parts Field Recycled . | . . . . . Retrieved Matter . | . . . . . Parts Self-Destructed . | . . . . . Prevented . | . . . . . Kills | -11 -10 -10 -10 -9 ------- Run | Yrd Mat Min Exi Min Combat Hostiles Destroyed 18 | . 9 . . 9 Guns 9 | . 9 . . . Cannons 2 | . . . . 2 AOE 7 | . . . . 7 Classes Destroyed 4 | . 1 . . 3 Tunneler 2 | . . . . 2 Swarmer 12 | . 9 . . 3 Grunt 5 | . . . . 5 Assembled 1 | . . . . 1 Best Kill Streak 6 | . 6 . . 4 Combat Bots Only 6 | . 6 . . 3 Max Kills in Single Turn 4 | . 1 . . 4 Gunslinging . | . . . . . Exploded 2 | . . . . 2 Melee . | . . . . . Uniques/NPCs Destroyed . | . . . . . Combat | -11 -10 -10 -10 -9 -------- Run | Yrd Mat Min Exi Min Hostile Shots Fired 126 | . 84 . . 42 Missed 32 | . 23 . . 9 Damage Taken 1048 | . 483 . . 565 Core 280 | . 83 . . 197 Absorbed by Shields . | . . . . . Core Remaining (%) 100 | 100 . . . . Volleys Fired 33 | . 26 . . 7 Largest 2 | . 2 . . 1 Hottest 100 | . 40 . . 100 Shots Fired 59 | . 52 . . 7 Gun 52 | . 52 . . . Cannon 7 | . . . . 7 Launcher . | . . . . . Special . | . . . . . Kinetic 52 | . 52 . . . Thermal 7 | . . . . 7 Explosive . | . . . . . Electromagnetic . | . . . . . Robot Hit Streak 4 | . 4 . . 3 Robot Miss Streak 9 | . 9 . . 1 Penetration Max . | . . . . . Secondary Targets 4 | . 4 . . . Max Gunslinging Chain 1 | . 1 . . . Shots Hit Robots 19 | . 17 . . 2 Core Hits 22 | . 11 . . 11 Critical Kills . | . . . . . Critical Parts Destroyed . | . . . . . Critical Strikes . | . . . . . Melee Attacks . | . . . . . Impact . | . . . . . Slashing . | . . . . . Piercing . | . . . . . Sneak Attacks . | . . . . . Combat Hostiles . | . . . . . Follow-up Attacks . | . . . . . Damage Inflicted 1008 | . 198 . . 810 Guns 198 | . 198 . . . Cannons 245 | . . . . 245 Explosions 553 | . . . . 553 Melee . | . . . . . Ramming 12 | . . . . 12 Kinetic 198 | . 198 . . . Thermal 798 | . . . . 798 Explosive . | . . . . . Electromagnetic . | . . . . . Impact . | . . . . . Slashing . | . . . . . Piercing . | . . . . . Highest Corruption . | . . . . . Average Corruption . | . . . . . Corruption Purged . | . . . . . Corruption Blocked . | . . . . . Overload Shots . | . . . . . Overflow Damage 110 | . . . . 110 Projectiles 21 | . . . . 21 Explosions 89 | . . . . 89 Melee . | . . . . . Knockbacks . | . . . . . Impact . | . . . . . Kinetic . | . . . . . Secondary . | . . . . . Self-Inflicted Damage 213 | . . . . 213 Shots 3 | . . . . 3 Rammed 3 | . . . . 3 Targets Rammed 3 | . . . . 3 Kicked . | . . . . . Crushed . | . . . . . Highest Temperature 58 | . . . . 58 Average Temperature 25 | . . . . 25 Received Heat Transfer 168 | . . . . 168 Siege Activations . | . . . . . Robots Corrupted . | . . . . . Combat Hostiles . | . . . . . Parts Fried . | . . . . . Impact Corruptions . | . . . . . Robots Melted . | . . . . . Combat Hostiles . | . . . . . Parts Melted 1 | . . . . 1 Heat Transferred 640 | . . . . 640 Parts Sabotaged . | . . . . . Parts Stolen . | . . . . . Parts Stripped . | . . . . . Power Chain Reactions . | . . . . . Alert | -11 -10 -10 -10 -9 ------- Run | Yrd Mat Min Exi Min Peak Influence 217 | . 217 84 . 104 Initial 84 | . . 84 . . Average 30 | . 81 84 . 16 Maximum Alert Level 1 | . 1 . . . Low Security (%) 98 | 100 92 100 . 100 Level 1 1 | . 7 . . . Level 2 . | . . . . . Level 3 . | . . . . . Level 4 . | . . . . . Level 5 . | . . . . . High Security . | . . . . . Max Security . | . . . . . Squads Dispatched . | . . . . . Investigation . | . . . . . Extermination . | . . . . . Reinforcement . | . . . . . Assault . | . . . . . Garrison . | . . . . . Intercept . | . . . . . Searches Triggered . | . . . . . Construction Impeded . | . . . . . Haulers Reinforced . | . . . . . Active Scanning Responses . | . . . . . Cargo Convoy Interrupts . | . . . . . Stealth | -11 -10 -10 -10 -9 --------- Run | Yrd Mat Min Exi Min Distress Signals 1 | . . . . 1 Communications Jammed . | . . . . . Distress Signals . | . . . . . Times Spotted 19 | . 10 . . 9 Peak Tracking Total 5 | . 5 . . 3 Tactical Retreats 1 | . 1 . . . Traps | -11 -10 -10 -10 -9 ------- Run | Yrd Mat Min Exi Min Traps Triggered . | . . . . . Indirectly . | . . . . . Trap Hack Attempts . | . . . . . Triggered . | . . . . . Disarmed . | . . . . . Reprogrammed . | . . . . . Reused . | . . . . . Traps Extracted . | . . . . . Installed . | . . . . . Triggered . | . . . . . Machines | -11 -10 -10 -10 -9 ---------- Run | Yrd Mat Min Exi Min Machines Disabled . | . . . . . Max in Single Turn . | . . . . . Machines Repaired . | . . . . . Machines Dismantled . | . . . . . Machines Sabotaged . | . . . . . Overloaded Fab Kills . | . . . . . Hacking | -11 -10 -10 -10 -9 --------- Run | Yrd Mat Min Exi Min Machines Accessed 1 | . 1 . . . Terminals 1 | . 1 . . . Fabricators . | . . . . . Repair Stations . | . . . . . Recycling Units . | . . . . . Scanalyzers . | . . . . . Garrison Access . | . . . . . Total Hacks 2 | . 2 . . . Successful 2 | . 2 . . . Failed . | . . . . . Catastrophic . | . . . . . Database Lockouts . | . . . . . Manual 3 | . 1 . 2 . Terminals 2 | . 2 . . . Fabricators . | . . . . . Repair Stations . | . . . . . Recycling Units . | . . . . . Scanalyzers . | . . . . . Garrison Access . | . . . . . Terminal Hacks 2 | . 2 . . . Part Schematic 1 | . 1 . . . Registered Components 1 | . 1 . . . Fabricator Hacks . | . . . . . Repair Station Hacks . | . . . . . Recycling Unit Hacks . | . . . . . Scanalyzer . | . . . . . Garrison Access Hacks . | . . . . . Unauthorized Hacks . | . . . . . Terminals . | . . . . . Fabricators . | . . . . . Repair Stations . | . . . . . Recycling Units . | . . . . . Scanalyzers . | . . . . . Garrison Access . | . . . . . Data Cores Recovered . | . . . . . Used . | . . . . . Hacking Detections . | . . . . . Full Trace Events . | . . . . . Feedback Events . | . . . . . Feedback Blocked . | . . . . . Robot Schematics Acquired . | . . . . . Robots Built . | . . . . . Authchips . | . . . . . Time . | . . . . . Total Robot Build Rating . | . . . . . Part Schematics Acquired 1 | . 1 . . . Parts Built . | . . . . . Authchips . | . . . . . Time . | . . . . . Total Part Build Rating . | . . . . . Parts Repaired . | . . . . . Time . | . . . . . Parts Recycled . | . . . . . Recycled Matter . | . . . . . Retrieved Matter . | . . . . . Retrieved Components . | . . . . . Parts Scanalyzed . | . . . . . Part Schematics Acquired . | . . . . . Parts Damaged . | . . . . . Bothacking | -11 -10 -10 -10 -9 ------------ Run | Yrd Mat Min Exi Min Used RIF Installer . | . . . . . Robots Hacked . | . . . . . Non-combat . | . . . . . Combat . | . . . . . Robot Hacks Applied . | . . . . . Relay Couplers Released . | . . . . . Fabnet Peak Effective % . | . . . . . Robots Rewired . | . . . . . Allies Hacked . | . . . . . Hacks Repelled . | . . . . . Allies | -11 -10 -10 -10 -9 -------- Run | Yrd Mat Min Exi Min Total Allies . | . . . . . Largest Group . | . . . . . Highest-Rated Group . | . . . . . Highest-Rated Ally . | . . . . . Total Orders . | . . . . . Ally Attacks . | . . . . . Total Damage . | . . . . . Kills . | . . . . . Allies Corrupted . | . . . . . Allies Melted . | . . . . . Intel | -11 -10 -10 -10 -9 ------- Run | Yrd Mat Min Exi Min Robot Analysis Total . | . . . . . Derelict Logs Recovered 1 | . . . . 1 Drone Launches . | . . . . . Drone Recoveries . | . . . . . Exploration | -11 -10 -10 -10 -9 ------------- Run | Yrd Mat Min Exi Min Turns Passed 2633 | 89 381 113 506 1544 Spaces Moved 1125 | 54 190 95 261 525 Core 26 | 6 . . . 20 Treads 246 | 48 173 . . 25 Legs . | . . . . . Wheels . | . . . . . Hover . | . . . . . Flight 853 | . 17 95 261 480 Fastest Speed 50 | 50 117 117 117 160 Average Speed 218 | 148 156 117 193 279 Slowest Speed 520 | 160 160 117 277 520 Overloaded Moves . | . . . . . Propulsion Burnouts . | . . . . . Robots Hopped . | . . . . . Cave-ins Triggered . | . . . . . Exploration Rate (%) 40 | 4 30 26 63 79 Regions Visited 4 Branch Regions 3 Pre-discovered Areas . | . . . . . Known Exits Taken . | . . . . . Unknown Exits Taken 4 | 1 1 1 1 . Scrap Searched 2 | . . 1 . 1 Spaces Dug . | . . . . . Terrain Destroyed 119 | . . . . 119 Melee . | . . . . . Projectile 4 | . . . . 4 AOE 115 | . . . . 115 Terrain Rammed . | . . . . . Walls Destroyed . | . . . . . Machines Disabled . | . . . . . Actions | -11 -10 -10 -10 -9 --------- Run | Yrd Mat Min Exi Min Total 1234 | 60 229 96 266 583 Wait 36 | . . . . 36 Move 1121 | 53 189 94 260 525 Hop . | . . . . . Pick Up 10 | 1 5 1 . 3 Fast Attach 9 | 6 1 1 1 . Attach 9 | . 3 . 1 5 Detach 7 | . 4 . 3 . Swap 1 | . . . . 1 Drop 5 | . 1 . 1 3 Fire 33 | . 26 . . 7 Melee . | . . . . . Ram 2 | . . . . 2 Kick . | . . . . . Crush 1 | . . . . 1 Escape Stasis . | . . . . . Rewire . | . . . . . Trap . | . . . . . Miscellaneous . | . . . . . Route ------- -11/Scrapyard -10/Materials -10/Mines -10/Exiles -9/Mines History --------- Turn | Location | Event 11 | -11/Scrapyard | Discovered new exit (range 16) 90 | -11/Scrapyard | Entered Materials 306 | -10/Materials | Build established: Mutant 452 | -10/Materials | Discovered new exit (range 15) 471 | -10/Materials | Entered Mines 547 | -10/Mines | Met a Derelict bent on vengeance 579 | -10/Mines | Deemed a non-threat by the Exiles lab entrance 579 | -10/Mines | Discovered new exit (range 5) 584 | -10/Mines | Entered Exiles 614 | -10/Exiles | Met 8R-AWN 632 | -10/Exiles | Met EX-HEX 670 | -10/Exiles | Met EX-BIN 685 | -10/Exiles | Aligned with FarCom system 686 | -10/Exiles | Given EX-Vault access code 733 | -10/Exiles | Opened EX-Vault 753 | -10/Exiles | Found Prototype Energy Cannon 753 | -10/Exiles | Identified YOLO Cannon 830 | -10/Exiles | Warned to stay clear of 0b10 Research branches 913 | -10/Exiles | Met EX-DEC 1065 | -10/Exiles | Discovered new exit (range 10) 1090 | -10/Exiles | Left Exiles lab with YOLO Cannon 1090 | -10/Exiles | Entered Mines 1816 | -9/Mines | Learned 2 Materials zone layouts 1966 | -9/Mines | Joined a pair of Derelicts in attacking an 0b10 outpost 2221 | -9/Mines | Excavation squad dispatched 2221 | -9/Mines | A large section of the Mines collapsed 2461 | -9/Mines | Core integrity fell below 50% 2471 | -9/Mines | Excavation squad dispatched 2622 | -9/Mines | Core integrity fell below 20% 2634 | -9/Mines | Destroyed self with YOLO Cannon Last Messages --------------- 02430_ U-05 Engineer builds a Wall. 02441_ Acquired 16 matter. 02444_ G-34 Mercenary destroyed. 02454_ AJ-4YI(g) destroyed. 02460_ G-34 Mercenary destroyed. 02460_ Lgt. Ion Engine destroyed. 02460_ Destroyed Lgt. Ion Engine. 02471_ ALERT: Derelict activity in mines confirmed. Dispatching additional escorted excavation squad. 02475_ Acquired 10 matter. 02486_ Slammed into G-34 Mercenary. 02515_ Flight Unit destroyed. 02541_ G-34 Mercenary destroyed. 02608_ Destroyed Mining Laser. 02608_ Destroyed Wheel. 02608_ G-34 Mercenary destroyed. 02608_ T-07 Excavator destroyed. 02634_ Destroyed Aluminum Leg. 02634_ G-34 Mercenary destroyed. Map ----- +----------------------------------------------------+ | | | | | | | ?????????????????????????????????? | | ?????????????????????????????????? | | ???????????????????????####??????? | | ??????????????????????# ##?????? | | ????????????????????## " ????? | | ???????????????????## " ????? | | ???????????????????# g# ????? | | ????????#####?????## ????? | | ???????## ##????#" #???? | | ??????## ##???## #???? | | ???# ## ###### % #??? | | ???# %% # #" %! #??? | | ??????## ### # #####|% ##??? | | ???????### = #?# # ##?###%##???? | | ???????##""=%!##?# #????#!#????? | | ??????## "%[ #??## ##????# #????? | | ??????# "" !"#???# #?????# #????? | | ??#####"" !"#???# #?????# #????? | | ??# == ""#??## #?????# #????? | | ??# ###""!="" #??# ##????# #????? | | ??# #?# " %" ##??## ##?##; ;????? | | ??# #?# # # #???## ###;; ;????? | | ### #?# # # #???## %= @ ;????? | | #?##" ###??# # ;????? | | ###### =##???### ##;;;;#???? | | #???# %###???### ""#?? #???? | | ##??# = ##??# ##"" #????????? | | #??## ### ##????????? | | #???## #########?????????? | | ##??## ###??????????????? | | #### ##?????????????? | | ##??######????? | | #?##"%% ##???? | | ## ## #?# ! !!#???? | | ######## ## ##?#!! !!#???? | | ###??????# #### ##??## ##???? | | #????????# ##??# #???###++####??? | | ????????# ##???# #???# % #??? | | #???????# #????# #???# #??? | | #???????# #????# #???# #??? | | #???????# #????# ##### #??? | | #??????? ?????# #??? | | ###????# ?????# #??? | | ##???# ?????####### #??? | | #???# ???????????## ######??? | | #???# ????????????# #???????? | | ##???# ?#######????# #???????? | +----------------------------------------------------+ Best States ------------- Heat Dissipation 25 Energy Generation 10 Energy Capacity 250 Matter Stores 300 Matter Capacity 300 Sight Range 16 Terrain Scan Density 10 ECM Strength 1 Evasion (%) 40 Targeting Accuracy 6 Recoil Reduction 2 Item Schematics ----------------- Signal Interpreter | -10/Materials | Hacked Robot Schematics ------------------ None Fabricated ------------ Nothing Alien Tech Used ----------------- None Achievements -------------- None Challenges ------------ None Game ------ Seed SmartbombMasterScrap Manual? 0 Play Time 00:16:57 Cumulative 18.3 hours Start 2025.01.16 @ 19:30:18 End 2025.01.16 @ 19:47:23 Sessions 1 Manual Loads 0 Difficulty Rogue Special Mode None Game No. 47 Rogue 46 Adventurer 1 Explorer 0 Win Type - Total 0 Types 0/0/0/0/0/0/0/0/0 Lore% 7 Gallery% 25 Achievement% 19 Wizard Run 0 Options --------- Layout 2 ASCII 0 Keyboard 1 Movement Numpad Keybinds 0 Fullscreen 1 Font 24/Smallcaps Map View 50x44 Zoom Use 0% Tactical HUD 1 Map Filters NONE Filters NONE Steam 1 RUN: cfdcf265-6e9c-4627-8592-8576c6e9eb7b